fUST/lending_fUST_20250315
["ID","MTS","AMOUNT","RATE_DAILY","PERIOD"]
[356170424,1742001038322,-500.0,8.193e-05,2]
[356170426,1742001038332,-500.0,8.193e-05,2]
[356170427,1742001038343,-500.0,8.193e-05,2]
[356170428,1742001038354,-500.0,8.219e-05,2]
[356170429,1742001038364,-500.0,8.219e-05,2]
[356170430,1742001038374,-500.0,8.219e-05,2]
[356170431,1742001038384,-500.0,8.219e-05,2]
[356170432,1742001038394,-500.0,8.219e-05,2]
[356170433,1742001038403,-500.0,8.219e-05,2]
[356170434,1742001038413,-500.0,8.219e-05,2]
[356170435,1742001038422,-500.0,8.219e-05,2]
[356170436,1742001038435,-500.0,8.219e-05,2]
[356170437,1742001038445,-500.0,8.219e-05,2]
[356170438,1742001038455,-500.0,8.219e-05,2]
[356170439,1742001038464,-500.0,8.219e-05,2]
[356170440,1742001038475,-500.0,8.219e-05,2]
[356170441,1742001038485,-500.0,8.219e-05,2]
[356170442,1742001038495,-500.0,8.219e-05,2]
[356170443,1742001038505,-636.61,8.219e-05,2]
[356170444,1742001038517,-500.0,8.219e-05,2]
[356170445,1742001038527,-500.0,8.219e-05,2]
[356170446,1742001038537,-500.0,8.219e-05,2]
[356170447,1742001038546,-500.0,8.219e-05,2]
[356170448,1742001038556,-500.0,8.219e-05,2]
[356170449,1742001038566,-500.0,8.219e-05,2]
[356170450,1742001038576,-657.53,8.219e-05,2]
[356170451,1742001038586,-500.0,8.219e-05,2]
[356170452,1742001038595,-591.37,8.219e-05,2]
[356170453,1742001038607,-500.0,8.219e-05,2]
[356170454,1742001038616,-644.39,8.219e-05,2]
[356170455,1742001038626,-500.0,8.219e-05,2]
[356170456,1742001038635,-500.0,8.219e-05,2]
[356170457,1742001038644,-1404.98,8.219e-05,2]
[356170458,1742001038654,-500.0,8.219e-05,2]
[356170459,1742001038664,-500.0,8.219e-05,2]
[356170460,1742001038675,-500.0,8.219e-05,2]
[356170461,1742001038685,-500.0,8.219e-05,2]
[356170462,1742001038694,-500.0,8.219e-05,2]
[356170463,1742001038704,-500.0,8.219e-05,2]
[356170464,1742001038714,-500.0,8.219e-05,2]
[356170465,1742001038723,-500.0,8.219e-05,2]
[356170466,1742001038733,-500.0,8.219e-05,2]
[356170467,1742001038743,-500.0,8.219e-05,2]
[356170468,1742001038752,-500.0,8.219e-05,2]
[356170469,1742001038762,-500.0,8.219e-05,2]
[356170470,1742001038772,-500.0,8.219e-05,2]
[356170471,1742001038781,-637.16054037,8.219e-05,2]
[356170472,1742001038791,-500.0,8.219e-05,2]
[356170473,1742001038800,-676.97,8.219e-05,2]
[356170474,1742001038810,-500.0,8.219e-05,2]
[356170475,1742001038820,-500.0,8.219e-05,2]
[356170476,1742001039029,-500.0,8.219e-05,2]
[356170477,1742001039040,-500.0,8.219e-05,2]
[356170478,1742001039050,-500.0,8.219e-05,2]
[356170479,1742001039060,-500.0,8.219e-05,2]
[356170480,1742001039071,-500.0,8.219e-05,2]
[356170481,1742001039080,-500.0,8.219e-05,2]
[356170482,1742001039090,-666.43,8.219e-05,2]
[356170483,1742001039099,-500.0,8.219e-05,2]
[356170484,1742001039110,-500.0,8.219e-05,2]
[356170485,1742001039119,-851.26,8.219e-05,2]
[356170486,1742001039129,-500.0,8.219e-05,2]
[356170487,1742001039139,-500.0,8.219e-05,2]
[356170488,1742001039149,-500.0,8.219e-05,2]
[356170489,1742001039159,-500.0,8.219e-05,2]
[356170490,1742001039169,-500.0,8.219e-05,2]
[356170491,1742001039179,-500.06,8.219e-05,2]
[356170492,1742001039188,-928.23,8.219e-05,2]
[356170493,1742001039198,-500.0,8.219e-05,2]
[356170494,1742001039207,-535.6,8.219e-05,2]
[356170495,1742001039216,-500.0,8.219e-05,2]
[356170496,1742001039226,-500.0,8.219e-05,2]
[356170497,1742001039236,-505.49271059,8.219e-05,2]
[356170498,1742001039246,-500.0,8.219e-05,2]
[356170499,1742001039254,-500.0,8.219e-05,2]
[356170500,1742001039262,-500.0,8.219e-05,2]
[356170501,1742001039271,-304.89800599,8.219e-05,2]
[356170502,1742001039279,-500.0,8.219e-05,2]
[356170503,1742001039287,-500.0,8.219e-05,2]
[356170504,1742001039296,-500.0,8.219e-05,2]
[356170505,1742001039305,-586.45715592,8.219e-05,2]
[356170506,1742001039315,-500.0,8.219e-05,2]
[356170507,1742001039324,-500.0,8.219e-05,2]
[356170508,1742001039334,-500.0,8.219e-05,2]
[356170509,1742001039344,-500.0,8.219e-05,2]
[356170510,1742001039354,-7374.63,8.219e-05,2]
[356170511,1742001039364,-500.0,8.219e-05,2]
[356170512,1742001039377,-500.0,8.219e-05,2]
[356170513,1742001039387,-500.0,8.219e-05,2]
[356170514,1742001039397,-1562.39,8.219e-05,2]
[356170515,1742001039406,-500.0,8.219e-05,2]
[356170516,1742001039416,-502.9971439,8.219e-05,2]
[356170517,1742001039426,-500.0,8.219e-05,2]
[356170518,1742001039439,-500.0,8.219e-05,2]
[356170519,1742001039449,-500.0,8.219e-05,2]
[356170520,1742001039459,-500.0,8.219e-05,2]
[356170521,1742001039469,-500.0,8.219e-05,2]
[356170522,1742001039479,-2903.1,8.219e-05,2]
[356170523,1742001039489,-500.0,8.219e-05,2]
[356170524,1742001039499,-500.0,8.219e-05,2]
[356170525,1742001039510,-500.0,8.219e-05,2]
[356170526,1742001039520,-927.69,8.219e-05,2]
[356170527,1742001039531,-500.0,8.219e-05,2]
[356170528,1742001039541,-500.0,8.219e-05,2]
[356170529,1742001039550,-500.0,8.219e-05,2]
[356170530,1742001039561,-500.0,8.219e-05,2]
[356170531,1742001039571,-500.0,8.219e-05,2]
[356170532,1742001039581,-500.0,8.219e-05,2]
[356170533,1742001039591,-500.0,8.219e-05,2]
[356170534,1742001039601,-500.0,8.219e-05,2]
[356170535,1742001039611,-500.0,8.219e-05,2]
[356170536,1742001039620,-7263.12,8.219e-05,2]
[356170537,1742001039631,-500.0,8.219e-05,2]
[356170538,1742001039643,-521.36061642,8.219e-05,2]
[356170539,1742001039653,-500.0,8.219e-05,2]
[356170540,1742001039663,-4200.8,8.219e-05,2]
[356170541,1742001039673,-560.52,8.219e-05,2]
[356170542,1742001039683,-500.0,8.219e-05,2]
[356170543,1742001039693,-3090.78,8.219e-05,2]
[356170544,1742001039703,-500.0,8.219e-05,2]
[356170545,1742001039712,-500.0,8.219e-05,2]
[356170546,1742001039723,-500.0,8.219e-05,2]
[356170547,1742001039733,-500.0,8.219e-05,2]
[356170548,1742001039743,-525.16,8.219e-05,2]
[356170549,1742001039754,-886.39,8.219e-05,2]
[356170550,1742001039764,-500.0,8.219e-05,2]
[356170551,1742001039774,-500.0,8.219e-05,2]
[356170552,1742001039784,-514.65951519,8.219e-05,2]
[356170553,1742001039793,-1159.77,8.219e-05,2]
[356170554,1742001039802,-8212.27,8.219e-05,2]
[356170555,1742001039812,-500.0,8.219e-05,2]
[356170556,1742001039822,-500.0,8.219e-05,2]
[356170557,1742001039831,-939.13,8.219e-05,2]
[356170558,1742001039841,-500.0,8.219e-05,2]
[356170559,1742001039851,-500.0,8.219e-05,2]
[356170560,1742001039861,-537.59,8.219e-05,2]
[356170561,1742001039870,-500.0,8.219e-05,2]
[356170562,1742001039879,-500.0,8.219e-05,2]
[356170563,1742001039888,-1088.71,8.219e-05,2]
[356170564,1742001039898,-500.0,8.219e-05,2]
[356170565,1742001039907,-871.77,8.219e-05,2]
[356170566,1742001039917,-500.0,8.219e-05,2]
[356170567,1742001039926,-500.0,8.219e-05,2]
[356170568,1742001039936,-954.83,8.219e-05,2]
[356170569,1742001039946,-1601.74,8.219e-05,2]
[356170570,1742001039956,-2418.96,8.219e-05,2]
[356170571,1742001039966,-500.0,8.219e-05,2]
[356170572,1742001039976,-500.0,8.219e-05,2]
[356170573,1742001039986,-604.41,8.219e-05,2]
[356170574,1742001039995,-500.0,8.219e-05,2]
[356170575,1742001040005,-11850.01,8.219e-05,2]
[356170576,1742001040015,-4930.17,8.219e-05,2]
[356170577,1742001040025,-500.0,8.219e-05,2]
[356170578,1742001040035,-500.0,8.219e-05,2]
[356170579,1742001040044,-11218.69,8.219e-05,2]
[356170580,1742001040053,-6187.72,8.219e-05,2]
[356170581,1742001040063,-500.0,8.219e-05,2]
[356170582,1742001040073,-500.0,8.219e-05,2]
[356170583,1742001040083,-13327.16,8.219e-05,2]
[356170584,1742001040092,-2922.34,8.219e-05,2]
[356170585,1742001040102,-684.48,8.219e-05,2]
[356170586,1742001040111,-500.0,8.219e-05,2]
[356170587,1742001040121,-576.19,8.219e-05,2]
[356170588,1742001040130,-500.0,8.219e-05,2]
[356170589,1742001040140,-633.82,8.219e-05,2]
[356170590,1742001040150,-546.68,8.219e-05,2]
[356170591,1742001040159,-500.0,8.219e-05,2]
[356170592,1742001040168,-713.59,8.219e-05,2]
[356170593,1742001040177,-3156.68,8.219e-05,2]
[356170594,1742001040187,-500.0,8.219e-05,2]
[356170595,1742001040196,-5229.77,8.219e-05,2]
[356170596,1742001040205,-1356.56,8.219e-05,2]
[356170597,1742001040215,-2241.08,8.219e-05,2]
[356170598,1742001040224,-500.0,8.219e-05,2]
[356170599,1742001040234,-1591.47,8.219e-05,2]
[356170600,1742001040245,-500.0,8.219e-05,2]
[356170601,1742001040254,-196096.86,8.219e-05,2]
[356170602,1742001040263,-595.66,8.219e-05,2]
[356170603,1742001040273,-11951.13,8.219e-05,2]
[356170604,1742001040283,-500.0,8.219e-05,2]
[356170605,1742001040292,-500.0,8.219e-05,2]
[356170606,1742001040302,-5331.97,8.219e-05,2]
[356170607,1742001040312,-1746.2,8.219e-05,2]
[356170608,1742001040321,-500.0,8.219e-05,2]
[356170609,1742001040331,-768.87,8.219e-05,2]
[356170610,1742001040341,-577.93,8.219e-05,2]
[356170611,1742001040350,-500.0,8.219e-05,2]
[356170612,1742001040360,-13663.23,8.219e-05,2]
[356170613,1742001040370,-500.0,8.219e-05,2]
[356170614,1742001040379,-1910.15,8.219e-05,2]
[356170615,1742001040388,-891.8,8.219e-05,2]
[356170616,1742001040398,-4460.41,8.219e-05,2]
[356170617,1742001040407,-500.0,8.219e-05,2]
[356170618,1742001040416,-1281.57,8.219e-05,2]
[356170619,1742001040426,-500.0,8.219e-05,2]
[356170620,1742001040438,-9289.25,8.219e-05,2]
[356170621,1742001040448,-500.0,8.219e-05,2]
[356170622,1742001040457,-500.0,8.219e-05,2]
[356170623,1742001040466,-645.21,8.219e-05,2]
[356170624,1742001040478,-626.56852467,8.219e-05,2]
[356170625,1742001040487,-350.0,8.219e-05,2]
[356170626,1742001040497,-833.875,8.25e-05,2]
[356170627,1742001040508,-399.0,8.316e-05,2]
[356170628,1742001040518,-399.0,8.316e-05,2]
[356170629,1742001040527,-150.0,8.326e-05,2]
[356170630,1742001040537,-1914.0,8.326e-05,2]
[356170631,1742001040546,-2270.0,8.326e-05,2]
[356170632,1742001040556,-540.0,8.326e-05,2]
[356170633,1742001040565,-166.537,8.329e-05,2]
[356170634,1742001040575,-500.0,8.493e-05,2]
[356170635,1742001040585,-500.0,8.493e-05,2]
[356170636,1742001040594,-151.0,8.493e-05,2]
[356170637,1742001040604,-500.0,8.493e-05,2]
[356170638,1742001040614,-500.0,8.493e-05,2]
[356170639,1742001040623,-500.0,8.493e-05,2]
[356170640,1742001040633,-500.0,8.493e-05,2]
[356170641,1742001040643,-500.0,8.493e-05,2]
[356170642,1742001040652,-500.0,8.493e-05,2]
[356170643,1742001040661,-500.0,8.493e-05,2]
[356170644,1742001040670,-500.0,8.493e-05,2]
[356170646,1742001040679,-500.0,8.493e-05,2]
[356170648,1742001040688,-636.61,8.493e-05,2]
[356170650,1742001040697,-534.56600446,8.493e-05,2]
[356170652,1742001040706,-500.0,8.493e-05,2]
[356170654,1742001040715,-500.0,8.493e-05,2]
[356170656,1742001040724,-500.0,8.493e-05,2]
[356170658,1742001040733,-657.53,8.493e-05,2]
[356170659,1742001040743,-500.0,8.493e-05,2]
[356170661,1742001040752,-591.37,8.493e-05,2]
[356170663,1742001040761,-500.0,8.493e-05,2]
[356170664,1742001040771,-644.39,8.493e-05,2]
[356170665,1742001040780,-500.0,8.493e-05,2]
[356170666,1742001040789,-500.0,8.493e-05,2]
[356170667,1742001040798,-1404.98,8.493e-05,2]
[356170668,1742001040808,-500.0,8.493e-05,2]
[356170669,1742001040817,-500.0,8.493e-05,2]
[356170670,1742001040827,-500.0,8.493e-05,2]
[356170671,1742001040836,-500.0,8.493e-05,2]
[356170672,1742001040845,-500.0,8.493e-05,2]
[356170673,1742001040854,-500.0,8.493e-05,2]
[356170674,1742001040864,-500.0,8.493e-05,2]
[356170675,1742001040873,-500.0,8.493e-05,2]
[356170677,1742001040883,-500.0,8.493e-05,2]
[356170679,1742001040892,-500.0,8.493e-05,2]
[356170680,1742001040902,-500.0,8.493e-05,2]
[356170681,1742001040911,-500.0,8.493e-05,2]
[356170682,1742001040920,-500.0,8.493e-05,2]
[356170683,1742001040930,-676.97,8.493e-05,2]
[356170684,1742001040941,-500.0,8.493e-05,2]
[356170685,1742001040950,-500.0,8.493e-05,2]
[356170686,1742001040959,-500.0,8.493e-05,2]
[356170687,1742001040968,-500.0,8.493e-05,2]
[356170688,1742001040977,-500.0,8.493e-05,2]
[356170689,1742001040986,-500.0,8.493e-05,2]
[356170690,1742001040995,-500.0,8.493e-05,2]
[356170691,1742001041004,-500.0,8.493e-05,2]
[356170692,1742001041014,-666.43,8.493e-05,2]
[356170693,1742001041023,-500.0,8.493e-05,2]
[356170694,1742001041032,-299.40726294,8.493e-05,2]
[356170695,1742001041041,-851.26,8.493e-05,2]
[356170696,1742001041050,-500.0,8.493e-05,2]
[356170697,1742001041059,-500.0,8.493e-05,2]
[356170698,1742001041068,-500.0,8.493e-05,2]
[356170699,1742001041077,-500.0,8.493e-05,2]
[356170700,1742001041086,-500.0,8.493e-05,2]
[356170701,1742001041095,-500.06,8.493e-05,2]
[356170702,1742001041105,-928.23,8.493e-05,2]
[356170703,1742001041113,-500.0,8.493e-05,2]
[356170704,1742001041123,-535.6,8.493e-05,2]
[356170705,1742001041133,-500.0,8.493e-05,2]
[356170706,1742001041142,-500.0,8.493e-05,2]
[356170707,1742001041151,-500.0,8.493e-05,2]
[356170708,1742001041162,-7374.63,8.493e-05,2]
[356170709,1742001041171,-1562.39,8.493e-05,2]
[356170710,1742001041182,-500.0,8.493e-05,2]
[356170711,1742001041191,-500.0,8.493e-05,2]
[356170712,1742001041200,-2903.1,8.493e-05,2]
[356170713,1742001041210,-927.69,8.493e-05,2]
[356170714,1742001041219,-500.0,8.493e-05,2]
[356170715,1742001041229,-500.0,8.493e-05,2]
[356170716,1742001041240,-500.0,8.493e-05,2]
[356170717,1742001041250,-500.0,8.493e-05,2]
[356170718,1742001041259,-500.0,8.493e-05,2]
[356170719,1742001041268,-7263.12,8.493e-05,2]
[356170720,1742001041278,-500.0,8.493e-05,2]
[356170721,1742001041287,-4200.8,8.493e-05,2]
[356170722,1742001041295,-560.52,8.493e-05,2]
[356170723,1742001041304,-3090.78,8.493e-05,2]
[356170724,1742001041314,-500.0,8.493e-05,2]
[356170725,1742001041323,-500.0,8.493e-05,2]
[356170726,1742001041333,-500.0,8.493e-05,2]
[356170727,1742001041342,-525.16,8.493e-05,2]
[356170728,1742001041352,-886.39,8.493e-05,2]
[356170729,1742001041362,-1159.77,8.493e-05,2]
[356170730,1742001041371,-8212.27,8.493e-05,2]
[356170731,1742001041380,-500.0,8.493e-05,2]
[356170732,1742001041390,-939.13,8.493e-05,2]
[356170733,1742001041399,-537.59,8.493e-05,2]
[356170734,1742001041408,-1088.71,8.493e-05,2]
[356170735,1742001041417,-871.77,8.493e-05,2]
[356170736,1742001041427,-500.0,8.493e-05,2]
[356170737,1742001041440,-500.0,8.493e-05,2]
[356170738,1742001041449,-954.83,8.493e-05,2]
[356170739,1742001041458,-1601.74,8.493e-05,2]
[356170740,1742001041468,-2418.96,8.493e-05,2]
[356170741,1742001041479,-604.41,8.493e-05,2]
[356170742,1742001041488,-11850.01,8.493e-05,2]
[356170743,1742001041497,-4930.17,8.493e-05,2]
[356170744,1742001041507,-500.0,8.493e-05,2]
[356170745,1742001041517,-11218.69,8.493e-05,2]
[356170746,1742001041528,-6187.72,8.493e-05,2]
[356170747,1742001041538,-500.0,8.493e-05,2]
[356170748,1742001041548,-285.46636329,8.493e-05,2]
[356170749,1742001041557,-10053.11162903,8.493e-05,2]
[356170750,1742001041772,-3274.04837097,8.493e-05,2]
[356170751,1742001041782,-2922.34,8.493e-05,2]
[356170752,1742001041791,-684.48,8.493e-05,2]
[356170753,1742001041800,-500.0,8.493e-05,2]
[356170754,1742001041809,-576.19,8.493e-05,2]
[356170755,1742001041819,-500.0,8.493e-05,2]
[356170756,1742001041828,-633.82,8.493e-05,2]
[356170757,1742001041837,-546.68,8.493e-05,2]
[356170758,1742001041847,-500.0,8.493e-05,2]
[356170759,1742001041857,-713.59,8.493e-05,2]
[356170760,1742001041867,-3156.68,8.493e-05,2]
[356170761,1742001041876,-500.0,8.493e-05,2]
[356170762,1742001041886,-5229.77,8.493e-05,2]
[356170763,1742001041895,-1356.56,8.493e-05,2]
[356170764,1742001041905,-2241.08,8.493e-05,2]
[356170765,1742001041915,-500.0,8.493e-05,2]
[356170766,1742001041924,-1591.47,8.493e-05,2]
[356170767,1742001041935,-500.0,8.493e-05,2]
[356170768,1742001041944,-26132.34775312,8.493e-05,2]
[356170769,1742001041960,-152838.7750924,8.493e-05,2]
[356170770,1742001042381,-500.0,8.219e-05,2]
[356170771,1742001042390,-17125.73715448,8.493e-05,2]
[356170772,1742001042400,-595.66,8.493e-05,2]
[356170773,1742001042409,-11951.13,8.493e-05,2]
[356170774,1742001042419,-500.0,8.493e-05,2]
[356170775,1742001042430,-500.0,8.493e-05,2]
[356170776,1742001042441,-5331.97,8.493e-05,2]
[356170777,1742001042451,-1746.2,8.493e-05,2]
[356170778,1742001042460,-500.0,8.493e-05,2]
[356170779,1742001042471,-768.87,8.493e-05,2]
[356170780,1742001042481,-577.93,8.493e-05,2]
[356170781,1742001042491,-500.0,8.493e-05,2]
[356170782,1742001042500,-8804.59623939,8.493e-05,2]
[356170787,1742001043435,-4858.63376061,8.493e-05,2]
[356170788,1742001043450,-500.0,8.493e-05,2]
[356170789,1742001043462,-1910.15,8.493e-05,2]
[356170790,1742001043473,-891.8,8.493e-05,2]
[356170794,1742001043678,-4460.41,8.493e-05,2]
[356170795,1742001043689,-500.0,8.493e-05,2]
[356170796,1742001043708,-1281.57,8.493e-05,2]
[356170797,1742001043718,-500.0,8.493e-05,2]
[356170798,1742001043728,-9289.25,8.493e-05,2]
[356170799,1742001043737,-500.0,8.493e-05,2]
[356170800,1742001043747,-500.0,8.493e-05,2]
[356170801,1742001043757,-645.21,8.493e-05,2]
[356170802,1742001043768,-500.0,8.493e-05,2]
[356170803,1742001043778,-1398.47,8.6e-05,2]
[356170804,1742001043788,-500.0,8.767e-05,2]
[356170805,1742001043798,-500.0,8.767e-05,2]
[356170806,1742001043808,-500.0,8.767e-05,2]
[356170807,1742001043818,-500.0,8.767e-05,2]
[356170808,1742001043828,-500.0,8.767e-05,2]
[356170809,1742001043837,-500.0,8.767e-05,2]
[356170810,1742001043847,-500.0,8.767e-05,2]
[356170811,1742001043856,-500.0,8.767e-05,2]
[356170812,1742001043866,-500.0,8.767e-05,2]
[356170813,1742001043875,-500.0,8.767e-05,2]
[356170814,1742001043885,-636.61,8.767e-05,2]
[356170815,1742001043895,-500.0,8.767e-05,2]
[356170816,1742001043904,-500.0,8.767e-05,2]
[356170817,1742001043914,-500.0,8.767e-05,2]
[356170818,1742001043923,-657.53,8.767e-05,2]
[356170819,1742001043933,-500.0,8.767e-05,2]
[356170820,1742001043942,-591.37,8.767e-05,2]
[356170821,1742001043952,-500.0,8.767e-05,2]
[356170822,1742001043962,-644.39,8.767e-05,2]
[356170823,1742001043971,-500.0,8.767e-05,2]
[356170824,1742001043981,-500.0,8.767e-05,2]
[356170825,1742001043990,-1404.98,8.767e-05,2]
[356170826,1742001043999,-500.0,8.767e-05,2]
[356170827,1742001044009,-500.0,8.767e-05,2]
[356170828,1742001044018,-500.0,8.767e-05,2]
[356170829,1742001044028,-500.0,8.767e-05,2]
[356170830,1742001044038,-500.0,8.767e-05,2]
[356170831,1742001044047,-500.0,8.767e-05,2]
[356170832,1742001044057,-500.0,8.767e-05,2]
[356170833,1742001044067,-595.372934,8.767e-05,2]
[356170834,1742001044076,-500.0,8.767e-05,2]
[356170835,1742001044087,-500.0,8.767e-05,2]
[356170836,1742001044096,-500.0,8.767e-05,2]
[356170837,1742001044106,-500.0,8.767e-05,2]
[356170838,1742001044116,-500.0,8.767e-05,2]
[356170839,1742001044125,-676.97,8.767e-05,2]
[356170840,1742001044135,-500.0,8.767e-05,2]
[356170841,1742001044144,-500.0,8.767e-05,2]
[356170842,1742001044154,-500.0,8.767e-05,2]
[356170843,1742001044164,-500.0,8.767e-05,2]
[356170844,1742001044174,-500.0,8.767e-05,2]
[356170845,1742001044184,-500.0,8.767e-05,2]
[356170846,1742001044194,-500.0,8.767e-05,2]
[356170847,1742001044204,-500.0,8.767e-05,2]
[356170848,1742001044214,-666.43,8.767e-05,2]
[356170849,1742001044223,-500.0,8.767e-05,2]
[356170850,1742001044233,-851.26,8.767e-05,2]
[356170851,1742001044242,-500.0,8.767e-05,2]
[356170852,1742001044252,-500.0,8.767e-05,2]
[356170853,1742001044262,-500.0,8.767e-05,2]
[356170854,1742001044272,-500.0,8.767e-05,2]
[356170855,1742001044282,-500.0,8.767e-05,2]
[356170856,1742001044292,-500.06,8.767e-05,2]
[356170857,1742001044302,-928.23,8.767e-05,2]
[356170858,1742001044312,-500.0,8.767e-05,2]
[356170859,1742001044322,-535.6,8.767e-05,2]
[356170860,1742001044332,-500.0,8.767e-05,2]
[356170861,1742001044342,-500.0,8.767e-05,2]
[356170862,1742001044352,-523.93072608,8.767e-05,2]
[356170863,1742001044361,-7374.63,8.767e-05,2]
[356170864,1742001044375,-500.0,8.767e-05,2]
[356170865,1742001044386,-500.0,8.767e-05,2]
[356170866,1742001044396,-2903.1,8.767e-05,2]
[356170867,1742001044405,-927.69,8.767e-05,2]
[356170868,1742001044415,-500.0,8.767e-05,2]
[356170869,1742001044425,-500.0,8.767e-05,2]
[356170870,1742001044439,-500.0,8.767e-05,2]
[356170871,1742001044448,-500.0,8.767e-05,2]
[356170872,1742001044458,-500.0,8.767e-05,2]
[356170873,1742001044468,-7263.12,8.767e-05,2]
[356170874,1742001044479,-500.0,8.767e-05,2]
[356170875,1742001044489,-4200.8,8.767e-05,2]
[356170876,1742001044500,-3090.78,8.767e-05,2]
[356170877,1742001044510,-500.0,8.767e-05,2]
[356170878,1742001044521,-500.0,8.767e-05,2]
[356170879,1742001044531,-500.0,8.767e-05,2]
[356170880,1742001044541,-525.16,8.767e-05,2]
[356170881,1742001044550,-886.39,8.767e-05,2]
[356170882,1742001044559,-1159.77,8.767e-05,2]
[356170883,1742001044569,-8212.27,8.767e-05,2]
[356170884,1742001044579,-500.0,8.767e-05,2]
[356170885,1742001044589,-939.13,8.767e-05,2]
[356170886,1742001044599,-537.59,8.767e-05,2]
[356170887,1742001044609,-1088.71,8.767e-05,2]
[356170888,1742001044619,-871.77,8.767e-05,2]
[356170889,1742001044629,-500.0,8.767e-05,2]
[356170890,1742001044638,-500.0,8.767e-05,2]
[356170891,1742001044648,-954.83,8.767e-05,2]
[356170892,1742001044658,-1601.74,8.767e-05,2]
[356170893,1742001044667,-2418.96,8.767e-05,2]
[356170894,1742001044676,-604.41,8.767e-05,2]
[356170895,1742001044687,-11850.01,8.767e-05,2]
[356170896,1742001044696,-4930.17,8.767e-05,2]
[356170897,1742001044706,-500.0,8.767e-05,2]
[356170898,1742001044715,-11218.69,8.767e-05,2]
[356170899,1742001044724,-6187.72,8.767e-05,2]
[356170900,1742001044734,-500.0,8.767e-05,2]
[356170901,1742001044743,-13327.16,8.767e-05,2]
[356170902,1742001044752,-2922.34,8.767e-05,2]
[356170903,1742001044762,-684.48,8.767e-05,2]
[356170904,1742001044771,-576.19,8.767e-05,2]
[356170905,1742001044781,-500.0,8.767e-05,2]
[356170906,1742001044791,-500.0,8.767e-05,2]
[356170907,1742001044800,-633.82,8.767e-05,2]
[356170908,1742001044810,-546.68,8.767e-05,2]
[356170909,1742001044819,-500.0,8.767e-05,2]
[356170910,1742001044828,-713.59,8.767e-05,2]
[356170911,1742001044838,-3156.68,8.767e-05,2]
[356170912,1742001044847,-500.0,8.767e-05,2]
[356170913,1742001044857,-5229.77,8.767e-05,2]
[356170914,1742001044868,-1356.56,8.767e-05,2]
[356170915,1742001044878,-2241.08,8.767e-05,2]
[356170916,1742001044897,-500.0,8.767e-05,2]
[356170917,1742001044908,-1591.47,8.767e-05,2]
[356170918,1742001044918,-500.0,8.767e-05,2]
[356170919,1742001044928,-196096.86,8.767e-05,2]
[356170920,1742001044938,-595.66,8.767e-05,2]
[356170921,1742001044948,-11951.13,8.767e-05,2]
[356170922,1742001044958,-500.0,8.767e-05,2]
[356170923,1742001044968,-500.0,8.767e-05,2]
[356170924,1742001044978,-5331.97,8.767e-05,2]
[356170925,1742001044988,-1746.2,8.767e-05,2]
[356170926,1742001044998,-500.0,8.767e-05,2]
[356170927,1742001045009,-768.87,8.767e-05,2]
[356170928,1742001045019,-577.93,8.767e-05,2]
[356170929,1742001045028,-500.0,8.767e-05,2]
[356170930,1742001045038,-13663.23,8.767e-05,2]
[356170931,1742001045048,-500.0,8.767e-05,2]
[356170932,1742001045057,-1910.15,8.767e-05,2]
[356170933,1742001045067,-891.8,8.767e-05,2]
[356170934,1742001045076,-4460.41,8.767e-05,2]
[356170935,1742001045086,-500.0,8.767e-05,2]
[356170936,1742001045096,-1281.57,8.767e-05,2]
[356170937,1742001045109,-500.0,8.767e-05,2]
[356170938,1742001045125,-9289.25,8.767e-05,2]
[356170939,1742001045135,-500.0,8.767e-05,2]
[356170940,1742001045144,-370.94103958,8.767e-05,2]
[356170941,1742001045154,-645.21,8.767e-05,2]
[356170942,1742001045163,-471.04049565,8.767e-05,2]